{"text_format":"1","workbook":"xlsx","n_sheets":9,"sheets":["WellsFargoChecking","Categories","Security","SecuritySplash1","SecuritySplash2","SecuritySplash3","SecuritySplash4","Splash","Blank"],"not_rendered":{"charts":0,"images":0,"macros":1,"external_links":0,"defined_names":48,"comments":0,"pivot_tables":0},"unopened":[],"bounds":{"document_bytes":16777216,"sheet_cells":100000,"rows_first":2000,"rows_last":500,"rows_between":2000,"halvings":0,"cell_chars":16384,"cell_head_chars":4096},"cells_cut":0,"cells_raw":0,"read":"whole","date_system":"1900"}

{"sheet":"WellsFargoChecking","index":0,"n_rows":9,"n_cols":5,"rows_kept":9,"cut":false,"hidden":false,"merged":[]}
[]
[]
[]
[]
[]
[]
[]
[]
["Transaction Date","Withdrawal Amount","Check No.","Description","Category"]

{"sheet":"Categories","index":1,"n_rows":23,"n_cols":27,"rows_kept":23,"cut":false,"hidden":false,"merged":[]}
["Autos",null,{"$f":"COUNTA(D2:XFD2)","v":23},null,{"$f":"COUNTA(E3:E1048576)","v":7},{"$f":"COUNTA(F3:F1048576)","v":0},{"$f":"COUNTA(G3:G1048576)","v":0},{"$f":"COUNTA(H3:H1048576)","v":12},1,4,{"$f":"COUNTA(K3:K1048576)","v":1},18,6,9,0,7,7,4,8,0,1,2,0,4,5,4,8]
["Baby Sitting/Daycare",null,{"$f":"COUNTA(Categories)","v":23},null,"Autos","Baby Sitting/Daycare","Big Ticket","Clothing","Costco","Credit Card Payment","Deposit","Eating Out","Entertainment","Gas","Gifts","Groceries","Home Improvements","Insurance","Medical","Misc.","Mortgage & HOA Dues","Paycheck/Direct Deposit","Savings","Target, etc.","Travel","TV & Internet","Utilities"]
["Big Ticket",null,{"$f":"IF(C2=C1,\"Check\",\"!!!\")","v":"Check"},null,"dept licensing",null,null,"gap ","costco","payment - thank you","deposit","burger","cinemark","shell ",null,"albertson","lowe's","colorado casual","tec ",null,"citimortgage","mcg",null,"kmart","seatac park","verizon internet","verizon"]
["Clothing",null,null,null,"tunex",null,null,"a eagle",null,"payment",null,"mcdonald","hollywood video","safeway fuel",null,"basha's","rainbird","allstate","rite aid",null,null,"mercer",null,"wm supercenter","wyatt pa","digis","pse"]
["Costco",null,null,null,"dmv",null,null,"jcpenney",null,"chase epay",null,"wendy's","classic fun","fast gas",null,"kohler's","lowes","state farm","walgreens",null,null,null,null,"wal-mart","delta air","directv","pud"]
["Credit Card Payment",null,null,null,"checker",null,null,"kohl's",null,"american express elec remit",null,"taco","blockbuster","conoco",null,"smiths food","home fabrics","farmer's ins","pediatrics",null,null,null,null,"walmart","southwest","dish ntwk","questar"]
["Deposit",null,null,null,"autozone",null,null,"old navy",null,null,null,"little caesars","recreation","smiths-fuel",null,"macey's","home depot",null,"bartell drugs",null,null,null,null,null,"port of seattle",null,"pacificorp"]
["Eating Out",null,null,null,"big o tires",null,null,"alloy",null,null,null,"teriyaki","galaxy","exxonmobil",null,"safeway","lumber",null,"gentle dental",null,null,null,null,null,null,null,"rocky mtn power"]
["Entertainment",null,null,null,"schuck's",null,null,"zappos",null,null,null,"dairy queen",null,"chevron",null,"haggen","ace hardware",null,"providence physician",null,null,null,null,null,null,null,"waste mgmt"]
["Gas",null,null,null,null,null,null,"downeast",null,null,null,"smokehouse",null,"union 76",null,null,null,null,"medical",null,null,null,null,null,null,null,"city of"]
["Gifts",null,null,null,null,null,null,"gap, inc",null,null,null,"grill",null,"costco gas"]
["Groceries",null,null,null,null,null,null,"childrens place",null,null,null,"arctic circle"]
["Home Improvements",null,null,null,null,null,null,"ross store",null,null,null,"café "]
["Insurance",null,null,null,null,null,null,"marshalls",null,null,null,"cafe "]
["Medical",null,null,null,null,null,null,null,null,null,null,"jack in the"]
["Misc.",null,null,null,null,null,null,null,null,null,null,"sushi"]
["Mortgage & HOA Dues",null,null,null,null,null,null,null,null,null,null,"keg "]
["Paycheck/Direct Deposit",null,null,null,null,null,null,null,null,null,null,"blue water taco"]
["Savings",null,null,null,null,null,null,null,null,null,null,"burger king"]
["Target, etc.",null,null,null,null,null,null,null,null,null,null,"taco bell"]
["Travel"]
["TV & Internet"]
["Utilities"]

{"sheet":"Security","index":2,"n_rows":16,"n_cols":2,"rows_kept":16,"cut":false,"hidden":false,"merged":[]}
[]
["userName:"]
["password:"]
[]
["Disable security?","YES"]
[]
["sheetNum:",1]
[]
[]
[]
[]
["Wells Fargo Login"]
["userName:"]
["password:"]
["fromDate:",{"$f":"IF(ISNUMBER(INDIRECT(\"WellsFargoChecking!A\"&(COUNTA(WellsFargoChecking!A10:A1048576)+9))-3),INDIRECT(\"WellsFargoChecking!A\"&(COUNTA(WellsFargoChecking!A10:A1048576)+9))-3,DATE(YEAR(B16),MONTH(B16)-3,DAY(B16)))","v":"2010-01-13"}]
["toDate:",{"$f":"DATE(YEAR(NOW()),MONTH(NOW()),DAY(NOW()))","v":"2010-04-13"}]

{"sheet":"SecuritySplash1","index":3,"n_rows":9,"n_cols":4,"rows_kept":9,"cut":false,"hidden":false,"merged":[]}
[]
[]
[]
[]
[]
[]
[]
[]
[null,null,null,"Securing data. "]

{"sheet":"SecuritySplash2","index":4,"n_rows":9,"n_cols":4,"rows_kept":9,"cut":false,"hidden":false,"merged":[]}
[]
[]
[]
[]
[]
[]
[]
[]
[null,null,null,"Securing data. ."]

{"sheet":"SecuritySplash3","index":5,"n_rows":9,"n_cols":4,"rows_kept":9,"cut":false,"hidden":false,"merged":[]}
[]
[]
[]
[]
[]
[]
[]
[]
[null,null,null,"Securing data. . ."]

{"sheet":"SecuritySplash4","index":6,"n_rows":9,"n_cols":4,"rows_kept":9,"cut":false,"hidden":false,"merged":[]}
[]
[]
[]
[]
[]
[]
[]
[]
[null,null,null,"Securing data. . .."]

{"sheet":"Splash","index":7,"n_rows":9,"n_cols":4,"rows_kept":9,"cut":false,"hidden":false,"merged":[]}
[]
[]
[]
[]
[]
[]
[]
[]
[null,null,null,"Welcome!"]

{"sheet":"Blank","index":8,"n_rows":0,"n_cols":0,"rows_kept":0,"cut":false,"hidden":false,"merged":[]}